Cogmind - Beta 13 @@@ ROGUE MODE // 2024.03.11 @ 11:01:06 Player: beter Result: Destroyed by H-61 Shepherd with Heavy Assault Cannon Performance ------------- Evolutions (2) 1000 Regions Visited (3) 600 Robots Destroyed (24) 120 Value Destroyed (992) 992 Prototype IDs (0) 0 Alien Tech Used (0) 0 Bonus (0) 0 TOTAL SCORE: 2712 Bonus ------- None Cogmind --------- Core Integrity 0/550 Matter 300/300 Energy 99/100 System Corruption 0% Temperature Cool (0) Movement Core (100) Ox1 Location -8/Materials Parts ------- > --- POWER (1) -------- (None) > --- PROPULSION (4) --- (None) > --- UTILITY (3) ------ Small Storage Unit Terrain Scan Processor > --- WEAPON (3) ------- (None) > --- INVENTORY (8) ---- Light Nuclear Core Aluminum Leg Carbon-fiber Leg Improved Signal Interpreter ECM Suite Hardlight Generator Peak State ------------ > --- POWER ------------ Light Nuclear Core > --- PROPULSION ------- Aluminum Leg Aluminum Leg Carbon-fiber Leg Carbon-fiber Leg > --- UTILITY ---------- Disposable Heat Sink Small Storage Unit Improved Sensor Array > --- WEAPON ----------- Heavy Particle Cannon Assault Rifle Gauss Rifle > --- INVENTORY -------- Subdweller Power Source Aluminum Leg Improved Signal Interpreter ECM Suite Medium Armor Plating Hardlight Generator Subdweller Laser Heavy Particle Cannon [Rating: 26] Favorites ----------- Power Ion Engine Engine Ion Engine Power Core Light Nuclear Core Propulsion Wheel Leg Aluminum Leg Wheel Wheel Utility Small Storage Unit Device ECM Suite Storage Small Storage Unit Processor Improved Signal Interpreter Protection Medium Armor Plating Weapon Assault Rifle Energy Gun EM Pulse Gun Energy Cannon Heavy Particle Cannon Ballistic Gun Assault Rifle Build | -11 -10 -10 -8 ------- Run | Yrd Mat Sub Mat Slots Evolved 4 | . . . 4 Power . | . . . . Propulsion 2 | . . . 2 Utility 1 | . . . 1 Weapon 1 | . . . 1 Parts Attached 42 | 8 . 3 31 Power 5 | 1 . 1 3 Engine 4 | 1 . 1 2 Core 1 | . . . 1 Reactor . | . . . . Propulsion 14 | 4 . . 10 Treads . | . . . . Leg 12 | 2 . . 10 Wheel 2 | 2 . . . Hover . | . . . . Flight . | . . . . Utility 7 | 1 . 1 5 Device 3 | . . 1 2 Storage 1 | 1 . . . Processor 2 | . . . 2 Hackware . | . . . . Protection 1 | . . . 1 Artifact . | . . . . Weapon 16 | 2 . 1 13 Energy Gun 7 | 1 . 1 5 Energy Cannon 4 | . . . 4 Ballistic Gun 5 | 1 . . 4 Ballistic Cannon . | . . . . Launcher . | . . . . Special Weapon . | . . . . Impact Weapon . | . . . . Slashing Weapon . | . . . . Piercing Weapon . | . . . . Special Melee Weapon . | . . . . Unidentified Prototypes . | . . . . Parts Lost 18 | . . 2 16 Power 3 | . . 1 2 Propulsion 6 | . . . 6 Utility 2 | . . . 2 Weapon 7 | . . 1 6 Highest Loss Streak 5 | . . 1 5 To Critical Strikes . | . . . . Average Slot Usage (%) 88 | . 85 96 86 Engine 10 | . 14 13 7 Leg 13 | . . . 28 Wheel 15 | . 28 28 1 Device 5 | . . 11 5 Storage 11 | . 14 14 9 Processor 2 | . . . 6 Protection 1 | . . . 2 Energy Gun 9 | . 14 13 4 Energy Cannon 3 | . . . 7 Ballistic Gun 13 | . 14 14 12 Naked Turns . | . . . . Heaviest Build 32 | 14 14 16 32 Greatest Support 55 | 20 20 20 55 Greatest Overweight (x) 1 | . . . 1 Average Overweight (x) . | . . . . Largest Inventory Capacity 8 | 8 8 8 8 Average Capacity 7 | 6 8 8 8 Most Carried 8 | 7 6 8 8 Average Carried 6 | 4 6 6 7 Final Capacity 8 | 8 8 8 8 Final Carried 8 | 6 6 8 6 Class Distribution -------------------- 61% | Mutant 12% | Scavenger-Mutant 9% | Scavenger-Tank 8% | Skirmisher 8% | Gunner Dominant Class ---------------- Mutant | -10/Materials Mutant | -10/Subcaves Scavenger-Mutant | -8/Materials Resources | -11 -10 -10 -8 ----------- Run | Yrd Mat Sub Mat Matter Collected 986 | 213 . 138 635 Remotely . | . . . . Salvage Created 1064 | . . 130 934 Parts 60 | . . 7 53 Haulers Intercepted . | . . . . Recyclers Shooed 2 | . . . 2 Parts Field Recycled . | . . . . Retrieved Matter . | . . . . Parts Self-Destructed 2 | . . 2 . Prevented . | . . . . Kills | -11 -10 -10 -8 ------- Run | Yrd Mat Sub Mat Combat Hostiles Destroyed 22 | . . 3 19 Guns 16 | . . 3 13 Cannons 6 | . . . 6 Classes Destroyed 8 | . . 1 7 Worker 1 | . . . 1 Operator 1 | . . . 1 Swarmer 3 | . . . 3 Grunt 9 | . . . 9 Sentry 2 | . . . 2 Specialist 2 | . . . 2 Hunter 3 | . . . 3 Subdweller 3 | . . 3 . Best Kill Streak 6 | . . 1 6 Combat Bots Only 6 | . . 1 6 Max Kills in Single Turn 3 | . . 1 3 Gunslinging . | . . . . Exploded . | . . . . Melee . | . . . . Uniques/NPCs Destroyed . | . . . . Combat | -11 -10 -10 -8 -------- Run | Yrd Mat Sub Mat Hostile Shots Fired 179 | . . 19 160 Missed 31 | . . 5 26 Damage Taken 2666 | . . 274 2392 Core 623 | . . 37 586 Absorbed by Shields . | . . . . Core Remaining (%) 92 | 100 . 85 . Volleys Fired 82 | . . 17 65 Largest 3 | . . 2 3 Hottest 158 | . . 60 158 Shots Fired 181 | . . 33 148 Gun 129 | . . 33 96 Cannon 52 | . . . 52 Launcher . | . . . . Special . | . . . . Kinetic 90 | . . 17 73 Thermal 73 | . . . 73 Explosive . | . . . . Electromagnetic 18 | . . 16 2 Robot Hit Streak 21 | . . 18 21 Robot Miss Streak 4 | . . 2 4 Penetration Max . | . . . . Secondary Targets . | . . . . Shots Hit Robots 120 | . . 27 93 Core Hits 46 | . . 7 39 Critical Kills 1 | . . . 1 Critical Parts Destroyed . | . . . . Critical Strikes 1 | . . . 1 Destroy 1 | . . . 1 Melee Attacks . | . . . . Impact . | . . . . Slashing . | . . . . Piercing . | . . . . Sneak Attacks . | . . . . Combat Hostiles . | . . . . Follow-up Attacks . | . . . . Damage Inflicted 2375 | . . 314 2061 Guns 1444 | . . 314 1130 Cannons 923 | . . . 923 Explosions . | . . . . Melee . | . . . . Ramming 8 | . . . 8 Kinetic 956 | . . 174 782 Thermal 1235 | . . . 1235 Explosive . | . . . . Electromagnetic 176 | . . 140 36 Impact . | . . . . Slashing . | . . . . Piercing . | . . . . Highest Corruption . | . . . . Average Corruption . | . . . . Corruption Purged . | . . . . Corruption Blocked . | . . . . Overload Shots . | . . . . Overflow Damage . | . . . . Projectiles . | . . . . Explosions . | . . . . Melee . | . . . . Knockbacks . | . . . . Impact . | . . . . Kinetic . | . . . . Secondary . | . . . . Self-Inflicted Damage . | . . . . Shots . | . . . . Rammed . | . . . . Targets Rammed 2 | . . . 2 Kicked 2 | . . . 2 Crushed . | . . . . Highest Temperature 538 | . . 6 538 Average Temperature 173 | . . 6 174 Received Heat Transfer 750 | . . 30 720 Effects 14 | . . . 14 Shutdowns 5 | . . . 5 Energy Bleed 1 | . . . 1 Interference 3 | . . . 3 Matter Decay 3 | . . . 3 Short Circuit 1 | . . . 1 Damage (minor) 1 | . . . 1 Siege Activations . | . . . . Robots Corrupted . | . . . . Combat Hostiles . | . . . . Parts Fried 2 | . . 1 1 Impact Corruptions . | . . . . Robots Melted . | . . . . Combat Hostiles . | . . . . Parts Melted 1 | . . . 1 Heat Transferred 1914 | . . . 1914 Parts Sabotaged . | . . . . Parts Stolen . | . . . . Parts Stripped . | . . . . Power Chain Reactions . | . . . . Alert | -11 -10 -10 -8 ------- Run | Yrd Mat Sub Mat Peak Influence 321 | . . . 321 Initial . | . . . . Average 71 | . . . 128 Maximum Alert Level 1 | . . . 1 Low Security (%) 87 | 100 100 . 76 Level 1 12 | . . . 23 Level 2 . | . . . . Level 3 . | . . . . Level 4 . | . . . . Level 5 . | . . . . High Security . | . . . . Max Security . | . . . . Squads Dispatched 5 | . . . 5 Investigation 1 | . . . 1 Extermination . | . . . . Reinforcement 4 | . . . 4 Assault . | . . . . Garrison . | . . . . Intercept . | . . . . Searches Triggered . | . . . . Construction Impeded . | . . . . Haulers Reinforced . | . . . . Active Scanning Responses . | . . . . Cargo Convoy Interrupts . | . . . . Stealth | -11 -10 -10 -8 --------- Run | Yrd Mat Sub Mat Distress Signals 1 | . . . 1 Communications Jammed . | . . . . Distress Signals . | . . . . Times Spotted 34 | . 1 4 29 Peak Tracking Total 6 | . 1 2 6 Tactical Retreats . | . . . . Traps | -11 -10 -10 -8 ------- Run | Yrd Mat Sub Mat Traps Triggered . | . . . . Indirectly . | . . . . Trap Hack Attempts . | . . . . Triggered . | . . . . Disarmed . | . . . . Reprogrammed . | . . . . Reused . | . . . . Traps Extracted . | . . . . Installed . | . . . . Triggered . | . . . . Machines | -11 -10 -10 -8 ---------- Run | Yrd Mat Sub Mat Machines Disabled 2 | . . . 2 Max in Single Turn 1 | . . . 1 Machines Repaired . | . . . . Machines Dismantled . | . . . . Machines Sabotaged . | . . . . Overloaded Fab Kills . | . . . . Hacking | -11 -10 -10 -8 --------- Run | Yrd Mat Sub Mat Machines Accessed 6 | . . . 6 Terminals 5 | . . . 5 Fabricators . | . . . . Repair Stations . | . . . . Recycling Units . | . . . . Scanalyzers 1 | . . . 1 Garrison Access . | . . . . Total Hacks 15 | . . . 15 Successful 9 | . . . 9 Failed 6 | . . . 6 Catastrophic 4 | . . . 4 Database Lockouts . | . . . . Manual . | . . . . Terminals 13 | . . . 13 Fabricators . | . . . . Repair Stations . | . . . . Recycling Units . | . . . . Scanalyzers 2 | . . . 2 Garrison Access . | . . . . Terminal Hacks 7 | . . . 7 Record 4 | . . . 4 Unreport Threat 1 | . . . 1 Locate Traps 1 | . . . 1 Dispatch Records 1 | . . . 1 Fabricator Hacks . | . . . . Repair Station Hacks . | . . . . Recycling Unit Hacks . | . . . . Scanalyzer 2 | . . . 2 Insert Component 1 | . . . 1 Analyze 1 | . . . 1 Garrison Access Hacks . | . . . . Unauthorized Hacks . | . . . . Terminals . | . . . . Fabricators . | . . . . Repair Stations . | . . . . Recycling Units . | . . . . Scanalyzers . | . . . . Garrison Access . | . . . . Data Cores Recovered . | . . . . Used . | . . . . Hacking Detections 5 | . . . 5 Full Trace Events 1 | . . . 1 Feedback Events . | . . . . Feedback Blocked . | . . . . Robot Schematics Acquired . | . . . . Robots Built . | . . . . Authchips . | . . . . Time . | . . . . Total Robot Build Rating . | . . . . Part Schematics Acquired 1 | . . . 1 Parts Built . | . . . . Authchips . | . . . . Time . | . . . . Total Part Build Rating . | . . . . Parts Repaired . | . . . . Time . | . . . . Parts Recycled . | . . . . Recycled Matter . | . . . . Retrieved Matter . | . . . . Retrieved Components . | . . . . Parts Scanalyzed 1 | . . . 1 Part Schematics Acquired 1 | . . . 1 Parts Damaged . | . . . . Bothacking | -11 -10 -10 -8 ------------ Run | Yrd Mat Sub Mat Used RIF Installer . | . . . . Robots Hacked . | . . . . Non-combat . | . . . . Combat . | . . . . Robot Hacks Applied . | . . . . Relay Couplers Released . | . . . . Fabnet Peak Effective % . | . . . . Robots Rewired . | . . . . Allies Hacked . | . . . . Hacks Repelled . | . . . . Allies | -11 -10 -10 -8 -------- Run | Yrd Mat Sub Mat Total Allies . | . . . . Largest Group . | . . . . Highest-Rated Group . | . . . . Highest-Rated Ally . | . . . . Total Orders . | . . . . Ally Attacks . | . . . . Total Damage . | . . . . Kills . | . . . . Allies Corrupted . | . . . . Allies Melted . | . . . . Intel | -11 -10 -10 -8 ------- Run | Yrd Mat Sub Mat Robot Analysis Total . | . . . . Derelict Logs Recovered 1 | . . 1 . Drone Launches . | . . . . Drone Recoveries . | . . . . Exploration | -11 -10 -10 -8 ------------- Run | Yrd Mat Sub Mat Turns Passed 1585 | 97 456 353 679 Spaces Moved 676 | 61 23 275 317 Core 6 | 1 . . 5 Treads . | . . . . Legs 339 | 57 . . 282 Wheels 331 | 3 23 275 30 Hover . | . . . . Flight . | . . . . Fastest Speed 50 | 50 80 80 80 Average Speed 100 | 116 80 80 116 Slowest Speed 190 | 120 80 80 190 Overloaded Moves . | . . . . Propulsion Burnouts . | . . . . Robots Hopped . | . . . . Cave-ins Triggered . | . . . . Exploration Rate (%) 18 | 6 5 27 34 Regions Visited 3 Branch Regions 1 Pre-discovered Areas 1 | . . 1 . Known Exits Taken . | . . . . Unknown Exits Taken 3 | 1 1 1 . Scrap Searched . | . . . . Spaces Dug . | . . . . Terrain Destroyed 10 | . . . 10 Melee . | . . . . Projectile 10 | . . . 10 AOE . | . . . . Terrain Rammed . | . . . . Walls Destroyed . | . . . . Machines Disabled . | . . . . Actions | -11 -10 -10 -8 --------- Run | Yrd Mat Sub Mat Total 1417 | 85 460 374 498 Wait 572 | 7 438 75 52 Move 673 | 60 22 274 317 Hop . | . . . . Pick Up 26 | 8 . 5 13 Fast Attach 16 | 4 . . 12 Attach 16 | 4 . 3 9 Detach 2 | 2 . . . Swap 10 | . . . 10 Drop 18 | . . . 18 Fire 82 | . . 17 65 Melee . | . . . . Ram . | . . . . Kick 2 | . . . 2 Crush . | . . . . Escape Stasis . | . . . . Rewire . | . . . . Trap . | . . . . Miscellaneous . | . . . . Route ------- -11/Scrapyard -10/Materials -10/Subcaves -8/Materials (discovered 1 exit: Fac) History --------- Turn | Location | Event 6 | -11/Scrapyard | Discovered new exit (range 15) 98 | -11/Scrapyard | Entered Materials 306 | -10/Materials | Build established: Mutant 544 | -10/Materials | Discovered new exit (range 3) 554 | -10/Materials | Entered Subcaves 723 | -10/Subcaves | Learned location of Zion (-7) 723 | -10/Subcaves | Met a Zionite searching for "candidates" 733 | -10/Subcaves | Learned 4 Materials zone layouts 900 | -10/Subcaves | Discovered new exit (range 10) 907 | -10/Subcaves | Entered Materials 907 | -8/Materials | Evolved 4 slots: Propulsion x2, Utility x1, Weapon x1 908 | -8/Materials | Identified exit to Factory 1283 | -8/Materials | Lost 3 parts (1p1u1w) 1479 | -8/Materials | Lost 4 parts (2n1u1w) 1534 | -8/Materials | Core integrity fell below 50% 1559 | -8/Materials | Lost 4 parts (2n2w) 1577 | -8/Materials | Core integrity fell below 20% 1586 | -8/Materials | Destroyed by H-61 Shepherd with Heavy Assault Cannon Last Messages --------------- 01556_ R-06 Scavenger collects Imp. Heat Sink. 01557_ K-01 Serf collects debris. 01560_ R-06 Scavenger collects Lgt. Nuclear Core. 01562_ Carbon-fiber Leg destroyed. 01562_ Sub. Power Source destroyed. 01563_ K-01 Serf collects debris. 01567_ Kicked A-02 Transporter. 01567_ R-06 Scavenger collects Imp. Cooling System. 01570_ Sub. Laser destroyed. 01570_ Critical hit (Blast). 01572_ Hvy. Laser destroyed. 01574_ Knocked back. 01574_ K-01 Serf collects debris. 01576_ Penetrated by Slug. 01576_ Knocked back. 01580_ Penetrated by Slug. 01580_ Knocked back. 01580_ U-05 Engineer builds a Wall. 01582_ Carbon-fiber Leg destroyed. 01582_ Knocked back. Map ----- +----------------------------------------------------+ | ?????????????????????????????????????????????????? | | ?????????????????????????????????????????????????? | | ###########??????????????????????????????????????? | | ??????????????????????????????????????? | | < #??????????????????????????????????????? | | #??????????????????????????????????????? | | #####+###+#??????????????????????????????????????? | | # #??????????????????????????????????????? | | # """ #??????????????????????????????????????? | | # """ +??????????????????????????????????????? | | # """ #????????????? ??????????????????????? | | # "" #????????????? ??????????????????????? | | # S"" #????????????? ??????????????????????? | | # "" #????????????# #?????????????????????? | | # #????????????# #?????????????????????? | | ###########????????????# #?????????????????????? | | ??????????#????????????# #?????????????????????? | | ??????????#??????????### ###???????????????????? | | ??????????#??????????# #???????????????????? | | ??????????#?????###### #???????????????????? | | ###########?????? t #???????????????????? | | ??????? k #???????????????????? | | #######?????????a ] #???????????????????? | | #????????????????# * #???????????????????? | | ?????????????????????# H #??????"" """ #?? | | ??????????????????????# @ #???????"" """ #?? | | ??????????????????????# #??????? #?? | | ??????????????????????# % %#???????"" """ """ #?? | | ??????????????????????# #???????"" """ """ #?? | | ??????????????????????# #???????"" """ """ #?? | | ??????????????????????# a% #??????? #?? | | ??????????????????????# #?##################?? | | ??????????????????????#k#####?# "T" #????????? | | ??????????"???????????#u##?#### #????????? | | ???????? """ #########%####[## """"""" #????????? | | ??????? % ##% ]# """"""" #????????? | | ??????? %!/% # """"""" #????????? | | ??????? % %## T # """"""" #????????? | | ????????? "######/####+####!" # """"""" #????????? | | ??????????????? ??? ?##% # #????????? | | ?????????????"" ??" """ ??# #####+#########????? | | ?????????????"???"" """ #?# ^#??# [ + "" #????? | | ????????????????""" """ #?##+##### # ""S #????? | | ???????????????? #??# %% # "" #????? | | ?????????????????################# ]+ #????? | | ?????????????????# #??????# #[ ! #????? | | ?????????????????# #??????# # #????? | | ?????????????????# ######## ########????? | | ?????????????????# ! # % % #######????## | | ?????????????????# # [ # #????# | +----------------------------------------------------+ Best States ------------- Heat Dissipation 31 Coolant Potential 50 Energy Generation 15 Energy Capacity 250 Matter Stores 300 Matter Capacity 300 Sight Range 16 Robot Scan Range 15 Terrain Scan Density 85 ECM Strength 1 Armor Coverage 225 Evasion (%) 55 Item Schematics ----------------- Gauss Rifle | -8/Materials | Scanalyzed Robot Schematics ------------------ None Fabricated ------------ Nothing Alien Tech Used ----------------- None Achievements -------------- None Challenges ------------ None Game ------ Seed TripodRecyclingGravjet Manual? 0 Play Time 00:22:09 Cumulative 15.3 hours Start 2024.03.10 @ 11:56:08 End 2024.03.11 @ 11:01:06 Sessions 5 Manual Loads 0 Difficulty Rogue Special Mode None Game No. 15 Rogue 15 Adventurer 0 Explorer 0 Win Type - Total 0 Types 0/0/0/0/0/0/0/0/0 Lore% 15 Gallery% 26 Achievement% 17 Wizard Run 0 Options --------- Layout 0 ASCII 0 Keyboard 0 Movement Mouse Keybinds 0 Fullscreen 1 Font 24/Smallcaps Map View 60x50 Zoom Use 0% Tactical HUD 1 Map Filters NONE Filters NONE Steam X RUN: 09f6e42f-6646-4af2-88e8-9d7dfee11a33